[Event "Late-Titled-Tuesday-Blitz-August-29-2023"]
[Site "Chess.com"]
[Date "2023.08.29"]
[Round "6"]
[White "GM_shahin"]
[Black "dodoucb"]
[Result "1-0"]
[WhiteElo "2719"]
[BlackElo "2453"]
[TimeControl "180+1"]
[EndTime "15:05:52 PDT"]
[Termination "GM_shahin won on time"]

1. e4 {[%clk 0:02:47.7]} 1... c6 {[%clk 0:03:00]} 2. Nf3 {[%clk 0:02:48.1]} 2...
d5 {[%clk 0:03:00.3]} 3. Nc3 {[%clk 0:02:49]} 3... Bg4 {[%clk 0:02:59.5]} 4. h3
{[%clk 0:02:48.7]} 4... Bxf3 {[%clk 0:02:59.4]} 5. Qxf3 {[%clk 0:02:49.6]} 5...
Nf6 {[%clk 0:02:59.8]} 6. Be2 {[%clk 0:02:49.7]} 6... e6 {[%clk 0:02:59.6]} 7.
O-O {[%clk 0:02:50.4]} 7... Nbd7 {[%clk 0:02:58.1]} 8. d4 {[%clk 0:02:50.1]}
8... dxe4 {[%clk 0:02:47.6]} 9. Nxe4 {[%clk 0:02:51]} 9... Nxe4 {[%clk
0:02:48.1]} 10. Qxe4 {[%clk 0:02:51.9]} 10... Nf6 {[%clk 0:02:48.6]} 11. Qd3
{[%clk 0:02:51.9]} 11... Be7 {[%clk 0:02:48.6]} 12. c4 {[%clk 0:02:50.4]} 12...
O-O {[%clk 0:02:48.7]} 13. b3 {[%clk 0:02:51.1]} 13... c5 {[%clk 0:02:47]} 14.
Bb2 {[%clk 0:02:43.8]} 14... cxd4 {[%clk 0:02:46.9]} 15. Bxd4 {[%clk 0:02:42.7]}
15... Qa5 {[%clk 0:02:46.8]} 16. Bc3 {[%clk 0:02:37.2]} 16... Qc7 {[%clk
0:02:44.2]} 17. Bf3 {[%clk 0:02:29.3]} 17... Rad8 {[%clk 0:02:42.4]} 18. Qe2
{[%clk 0:02:28.8]} 18... Rfe8 {[%clk 0:02:40.8]} 19. Rfd1 {[%clk 0:02:20.2]}
19... h6 {[%clk 0:02:24.9]} 20. Be5 {[%clk 0:02:12.5]} 20... Qc8 {[%clk
0:02:24.5]} 21. Qe3 {[%clk 0:02:08.5]} 21... b6 {[%clk 0:02:22.7]} 22. Qf4
{[%clk 0:01:56.8]} 22... Nd7 {[%clk 0:02:07.1]} 23. Bd6 {[%clk 0:01:54.6]} 23...
Bxd6 {[%clk 0:01:46.1]} 24. Rxd6 {[%clk 0:01:55.5]} 24... Nc5 {[%clk 0:01:02.4]}
25. Rad1 {[%clk 0:01:52.2]} 25... Rxd6 {[%clk 0:01:01]} 26. Qxd6 {[%clk
0:01:53.1]} 26... Qb8 {[%clk 0:00:58.6]} 27. b4 {[%clk 0:01:47.5]} 27... Na6
{[%clk 0:00:50.1]} 28. a3 {[%clk 0:01:42.3]} 28... Qxd6 {[%clk 0:00:35.7]} 29.
Rxd6 {[%clk 0:01:36.9]} 29... Nb8 {[%clk 0:00:36.6]} 30. c5 {[%clk 0:01:02.7]}
30... bxc5 {[%clk 0:00:35.9]} 31. bxc5 {[%clk 0:01:03.6]} 31... Kf8 {[%clk
0:00:36.3]} 32. Rd4 {[%clk 0:00:38.9]} 32... Rc8 {[%clk 0:00:20.1]} 33. Bb7
{[%clk 0:00:34.1]} 33... Rxc5 {[%clk 0:00:06.2]} 34. Rd8+ {[%clk 0:00:34]} 34...
Ke7 {[%clk 0:00:07.1]} 35. Rxb8 {[%clk 0:00:34.6]} 35... Rb5 {[%clk 0:00:08]}
36. g4 {[%clk 0:00:16.9]} 36... a5 {[%clk 0:00:03.2]} 37. Kg2 {[%clk 0:00:15.5]}
37... Rb3 {[%clk 0:00:03.6]} 38. a4 {[%clk 0:00:15.4]} 38... g5 {[%clk
0:00:03.8]} 39. f3 {[%clk 0:00:14.1]} 39... f5 {[%clk 0:00:03.5]} 40. gxf5
{[%clk 0:00:11.4]} 40... exf5 {[%clk 0:00:04.4]} 41. Rh8 {[%clk 0:00:10.4]}
41... Rb2+ {[%clk 0:00:02.4]} 42. Kg3 {[%clk 0:00:10.9]} 42... f4+ {[%clk
0:00:01.7]} 43. Kg4 {[%clk 0:00:11.2]} 43... Rg2+ {[%clk 0:00:01.5]} 44. Kf5
{[%clk 0:00:11.2]} 1-0

[Event "Late-Titled-Tuesday-Blitz-August-29-2023"]
[Site "Chess.com"]
[Date "2023.08.29"]
[Round "6"]
[White "vi_pranav"]
[Black "GMG"]
[Result "0-1"]
[WhiteElo "2942"]
[BlackElo "2781"]
[TimeControl "180+1"]
[EndTime "15:05:54 PDT"]
[Termination "GMG won by resignation"]

1. e4 {[%clk 0:03:00.9]} 1... c5 {[%clk 0:02:57.7]} 2. Nf3 {[%clk 0:03:01]} 2...
Nc6 {[%clk 0:02:58.3]} 3. Bb5 {[%clk 0:03:00.3]} 3... Nf6 {[%clk 0:02:58.4]} 4.
Bxc6 {[%clk 0:02:52.3]} 4... dxc6 {[%clk 0:02:59.3]} 5. d3 {[%clk 0:02:52.1]}
5... Bg4 {[%clk 0:02:59]} 6. O-O {[%clk 0:02:51.8]} 6... Nd7 {[%clk 0:02:53.6]}
7. h3 {[%clk 0:02:50]} 7... Bh5 {[%clk 0:02:53.4]} 8. Nbd2 {[%clk 0:02:49.8]}
8... e5 {[%clk 0:02:52.5]} 9. Nc4 {[%clk 0:02:46.6]} 9... f6 {[%clk 0:02:47.5]}
10. c3 {[%clk 0:02:46.1]} 10... Be7 {[%clk 0:02:41.5]} 11. Ne3 {[%clk
0:02:44.5]} 11... Nf8 {[%clk 0:02:33.9]} 12. Nf5 {[%clk 0:02:41.7]} 12... Ne6
{[%clk 0:02:13.5]} 13. Qb3 {[%clk 0:02:34.7]} 13... Qd7 {[%clk 0:02:07.7]} 14.
Qxe6 {[%clk 0:02:01.6]} 14... Qxe6 {[%clk 0:02:08.6]} 15. Nxg7+ {[%clk
0:02:02.1]} 15... Kf7 {[%clk 0:02:09]} 16. Nxe6 {[%clk 0:02:03]} 16... Kxe6
{[%clk 0:02:09.1]} 17. g4 {[%clk 0:01:59.4]} 17... Bg6 {[%clk 0:02:01.6]} 18.
Be3 {[%clk 0:01:57]} 18... c4 {[%clk 0:01:47]} 19. dxc4 {[%clk 0:01:35.8]} 19...
Bxe4 {[%clk 0:01:46.1]} 20. Nd2 {[%clk 0:01:36.7]} 20... Bd3 {[%clk 0:01:44.8]}
21. Rfe1 {[%clk 0:01:36.8]} 21... h5 {[%clk 0:01:42.8]} 22. g5 {[%clk
0:01:37.2]} 22... Rhg8 {[%clk 0:01:28.5]} 23. Kh1 {[%clk 0:01:23.4]} 23... Kf5
{[%clk 0:01:15]} 24. f4 {[%clk 0:01:10.6]} 24... fxg5 {[%clk 0:00:50.2]} 25.
fxe5 {[%clk 0:00:55.1]} 25... g4 {[%clk 0:00:49.5]} 26. Bd4 {[%clk 0:00:49.8]}
26... Ke6 {[%clk 0:00:40.7]} 27. Ne4 {[%clk 0:00:37.2]} 27... gxh3 {[%clk
0:00:33.5]} 28. b3 {[%clk 0:00:28.2]} 28... Rg2 {[%clk 0:00:19.5]} 29. Re3
{[%clk 0:00:15.4]} 29... Bxe4 {[%clk 0:00:18.5]} 30. Rxe4 {[%clk 0:00:16.3]}
30... c5 {[%clk 0:00:19]} 31. Bg1 {[%clk 0:00:14.3]} 31... Rag8 {[%clk
0:00:18.2]} 32. Re3 {[%clk 0:00:10.8]} 32... R8g3 {[%clk 0:00:17]} 33. Ree1
{[%clk 0:00:03.9]} 33... Rxc3 {[%clk 0:00:15]} 34. Rad1 {[%clk 0:00:03.1]} 34...
Rxa2 {[%clk 0:00:12.8]} 35. Rd5 {[%clk 0:00:02.3]} 35... b6 {[%clk 0:00:10.1]}
36. Rdd1 {[%clk 0:00:01.6]} 36... Rxb3 {[%clk 0:00:10.2]} 37. Rf1 {[%clk
0:00:01.5]} 37... h2 {[%clk 0:00:08.2]} 38. Bf2 {[%clk 0:00:01.6]} 38... Rf3
{[%clk 0:00:08.3]} 39. Kg2 {[%clk 0:00:01.2]} 39... h1=Q+ {[%clk 0:00:07.1]} 40.
Rxh1 {[%clk 0:00:01.1]} 40... Rfxf2+ {[%clk 0:00:07.2]} 41. Kg1 {[%clk 0:00:02]}
41... Rg2+ {[%clk 0:00:07]} 42. Kf1 {[%clk 0:00:02.9]} 42... Raf2+ {[%clk
0:00:06.7]} 43. Ke1 {[%clk 0:00:03.8]} 0-1

[Event "Late-Titled-Tuesday-Blitz-August-29-2023"]
[Site "Chess.com"]
[Date "2023.08.29"]
[Round "6"]
[White "Dr_crypt"]
[Black "Jaka_Brilej"]
[Result "1/2-1/2"]
[WhiteElo "2337"]
[BlackElo "2506"]
[TimeControl "180+1"]
[EndTime "15:05:55 PDT"]
[Termination "Game drawn - insufficient material"]

1. d4 {[%clk 0:02:59.5]} 1... d5 {[%clk 0:02:59.7]} 2. c4 {[%clk 0:02:59.7]}
2... e6 {[%clk 0:02:59.8]} 3. Nc3 {[%clk 0:03:00.1]} 3... c6 {[%clk 0:03:00.3]}
4. cxd5 {[%clk 0:02:59.8]} 4... exd5 {[%clk 0:03:00.2]} 5. Bf4 {[%clk
0:03:00.3]} 5... Bf5 {[%clk 0:02:56.8]} 6. e3 {[%clk 0:02:59.8]} 6... Nf6 {[%clk
0:02:53.1]} 7. Qb3 {[%clk 0:02:55.6]} 7... Qb6 {[%clk 0:02:46]} 8. Nf3 {[%clk
0:02:53.6]} 8... Nbd7 {[%clk 0:02:44.6]} 9. Be2 {[%clk 0:02:52.7]} 9... Qxb3
{[%clk 0:02:26.9]} 10. axb3 {[%clk 0:02:52.2]} 10... Bc2 {[%clk 0:02:26.2]} 11.
Nd2 {[%clk 0:02:51.7]} 11... a6 {[%clk 0:02:18.2]} 12. h3 {[%clk 0:02:50.6]}
12... h6 {[%clk 0:02:15.4]} 13. O-O {[%clk 0:02:50.1]} 13... Be7 {[%clk
0:01:51.7]} 14. Rfc1 {[%clk 0:02:49.1]} 14... Bh7 {[%clk 0:01:47.8]} 15. g4
{[%clk 0:02:26.5]} 15... O-O {[%clk 0:01:47.2]} 16. Nf3 {[%clk 0:02:20.3]} 16...
Ne8 {[%clk 0:01:42.8]} 17. Kg2 {[%clk 0:02:12.4]} 17... Bd6 {[%clk 0:01:42.5]}
18. Bxd6 {[%clk 0:01:59.5]} 18... Nxd6 {[%clk 0:01:42]} 19. Nd2 {[%clk
0:01:52.5]} 19... Rae8 {[%clk 0:01:38.9]} 20. Na4 {[%clk 0:01:51.3]} 20... f5
{[%clk 0:01:35]} 21. Nc5 {[%clk 0:01:39.6]} 21... Nxc5 {[%clk 0:01:34.4]} 22.
dxc5 {[%clk 0:01:35.4]} 22... Nf7 {[%clk 0:01:13.4]} 23. Nf3 {[%clk 0:01:21.9]}
23... Ne5 {[%clk 0:01:07.2]} 24. Nxe5 {[%clk 0:01:21.1]} 24... Rxe5 {[%clk
0:01:08.1]} 25. Ra4 {[%clk 0:01:16.8]} 25... f4 {[%clk 0:01:02.6]} 26. Rc3
{[%clk 0:01:11.1]} 26... fxe3 {[%clk 0:00:59]} 27. Rxe3 {[%clk 0:01:07.8]} 27...
Rxe3 {[%clk 0:00:54.2]} 28. fxe3 {[%clk 0:01:07.4]} 28... Be4+ {[%clk
0:00:54.5]} 29. Kg3 {[%clk 0:01:06.3]} 29... Rf7 {[%clk 0:00:48.1]} 30. b4
{[%clk 0:01:03.6]} 30... g5 {[%clk 0:00:45.8]} 31. Ra1 {[%clk 0:01:02.3]} 31...
Kg7 {[%clk 0:00:44.3]} 32. Rf1 {[%clk 0:01:01.7]} 32... Rxf1 {[%clk 0:00:43.4]}
33. Bxf1 {[%clk 0:01:01.4]} 33... Kf6 {[%clk 0:00:43.9]} 34. Kf2 {[%clk
0:00:50.4]} 34... Ke5 {[%clk 0:00:43.8]} 35. Ke2 {[%clk 0:00:50.1]} 35... d4
{[%clk 0:00:35.7]} 36. Kd2 {[%clk 0:00:49.9]} 36... Bg6 {[%clk 0:00:24]} 37. Bd3
{[%clk 0:00:47.1]} 37... Be4 {[%clk 0:00:13.5]} 38. exd4+ {[%clk 0:00:22.1]}
38... Kxd4 {[%clk 0:00:13.8]} 39. Bxe4 {[%clk 0:00:22.1]} 39... Kxe4 {[%clk
0:00:13.9]} 40. Kc3 {[%clk 0:00:22.9]} 40... Kf3 {[%clk 0:00:13.4]} 41. b5
{[%clk 0:00:22.8]} 41... axb5 {[%clk 0:00:12.7]} 42. Kb4 {[%clk 0:00:22.7]}
42... Kg3 {[%clk 0:00:12.7]} 43. Ka5 {[%clk 0:00:23.4]} 43... Kxh3 {[%clk
0:00:13.3]} 44. Kb6 {[%clk 0:00:23.7]} 44... Kxg4 {[%clk 0:00:13.5]} 45. Kxb7
{[%clk 0:00:23.9]} 45... h5 {[%clk 0:00:13.3]} 46. Kxc6 {[%clk 0:00:23.8]} 46...
h4 {[%clk 0:00:14.2]} 47. Kxb5 {[%clk 0:00:20.1]} 47... h3 {[%clk 0:00:15.1]}
48. c6 {[%clk 0:00:20.1]} 48... h2 {[%clk 0:00:15.7]} 49. c7 {[%clk 0:00:20.4]}
49... h1=Q {[%clk 0:00:16.1]} 50. c8=Q+ {[%clk 0:00:20.7]} 50... Kg3 {[%clk
0:00:14.9]} 51. Qc7+ {[%clk 0:00:19.2]} 51... Kf2 {[%clk 0:00:14.7]} 52. Qc5+
{[%clk 0:00:16.5]} 52... Kf1 {[%clk 0:00:13.6]} 53. Qxg5 {[%clk 0:00:16]} 53...
Qb7+ {[%clk 0:00:13.6]} 54. Kc5 {[%clk 0:00:14.9]} 54... Qxb2 {[%clk 0:00:14]}
55. Qf4+ {[%clk 0:00:15]} 55... Qf2+ {[%clk 0:00:14.4]} 56. Qxf2+ {[%clk
0:00:15.4]} 56... Kxf2 {[%clk 0:00:15.3]} 1/2-1/2

[Event "Late-Titled-Tuesday-Blitz-August-29-2023"]
[Site "Chess.com"]
[Date "2023.08.29"]
[Round "6"]
[White "Kacparov"]
[Black "kingofthenil"]
[Result "0-1"]
[WhiteElo "2910"]
[BlackElo "2694"]
[TimeControl "180+1"]
[EndTime "15:05:56 PDT"]
[Termination "kingofthenil won on time"]

1. e4 {[%clk 0:03:00.9]} 1... e6 {[%clk 0:02:54.8]} 2. d4 {[%clk 0:03:00.4]}
2... d5 {[%clk 0:02:55.1]} 3. Nd2 {[%clk 0:03:00.6]} 3... c5 {[%clk 0:02:53.9]}
4. Ngf3 {[%clk 0:02:58.1]} 4... Nc6 {[%clk 0:02:52.7]} 5. Bb5 {[%clk 0:02:53.2]}
5... a6 {[%clk 0:02:51]} 6. Bxc6+ {[%clk 0:02:52.8]} 6... bxc6 {[%clk
0:02:51.9]} 7. O-O {[%clk 0:02:35.5]} 7... Nf6 {[%clk 0:02:42.5]} 8. Re1 {[%clk
0:02:30.3]} 8... Be7 {[%clk 0:02:40.7]} 9. c3 {[%clk 0:02:11.4]} 9... O-O {[%clk
0:02:29]} 10. Qc2 {[%clk 0:02:01.9]} 10... a5 {[%clk 0:02:26.7]} 11. a4 {[%clk
0:01:34.1]} 11... Ba6 {[%clk 0:02:26]} 12. b3 {[%clk 0:01:24.8]} 12... cxd4
{[%clk 0:02:08.7]} 13. cxd4 {[%clk 0:01:23.7]} 13... dxe4 {[%clk 0:02:08.9]} 14.
Nxe4 {[%clk 0:01:23.4]} 14... Nd5 {[%clk 0:02:09.8]} 15. Ba3 {[%clk 0:01:18.2]}
15... Bxa3 {[%clk 0:02:04.2]} 16. Rxa3 {[%clk 0:01:19.1]} 16... Nb4 {[%clk
0:02:04.5]} 17. Qc3 {[%clk 0:01:11.8]} 17... Qd5 {[%clk 0:01:50.1]} 18. Nc5
{[%clk 0:01:09.9]} 18... Rfd8 {[%clk 0:01:50.2]} 19. Raa1 {[%clk 0:01:08]} 19...
Rab8 {[%clk 0:01:43.5]} 20. h3 {[%clk 0:01:07.2]} 20... Qf5 {[%clk 0:01:38.2]}
21. Re5 {[%clk 0:01:00.5]} 21... Qf6 {[%clk 0:01:23.2]} 22. Nxa6 {[%clk
0:00:58]} 22... Nxa6 {[%clk 0:01:24.1]} 23. Rxa5 {[%clk 0:00:57.1]} 23... Nb4
{[%clk 0:01:25]} 24. Ne5 {[%clk 0:00:50.1]} 24... Nd5 {[%clk 0:01:16.6]} 25. Qg3
{[%clk 0:00:39.5]} 25... Nf4 {[%clk 0:01:17.5]} 26. Re1 {[%clk 0:00:36.1]} 26...
Rxd4 {[%clk 0:01:11.2]} 27. Nxc6 {[%clk 0:00:28.1]} 27... Rd3 {[%clk 0:01:11.3]}
28. Nxb8 {[%clk 0:00:22.7]} 28... Rxg3 {[%clk 0:01:07.3]} 29. fxg3 {[%clk
0:00:23]} 29... Qd4+ {[%clk 0:00:35.5]} 30. Kh2 {[%clk 0:00:22.7]} 30... Qd2
{[%clk 0:00:21.3]} 31. gxf4 {[%clk 0:00:15.5]} 31... Qxa5 {[%clk 0:00:18.9]} 32.
Rd1 {[%clk 0:00:13.7]} 32... h5 {[%clk 0:00:19.5]} 33. Nc6 {[%clk 0:00:13.3]}
33... Qc3 {[%clk 0:00:17.6]} 34. Nd4 {[%clk 0:00:12.1]} 34... Qe3 {[%clk
0:00:16.4]} 35. Kh1 {[%clk 0:00:09.1]} 35... Qxf4 {[%clk 0:00:16.4]} 36. a5
{[%clk 0:00:09.7]} 36... Qd6 {[%clk 0:00:11.9]} 37. Rd2 {[%clk 0:00:04]} 37...
Qb4 {[%clk 0:00:12.5]} 38. Nf3 {[%clk 0:00:03.5]} 38... Qxa5 {[%clk 0:00:12.8]}
39. Kh2 {[%clk 0:00:03.7]} 39... Qc7+ {[%clk 0:00:12.4]} 40. Kh1 {[%clk
0:00:03.9]} 40... Qf4 {[%clk 0:00:12.8]} 41. Rd4 {[%clk 0:00:03.7]} 41... Qc1+
{[%clk 0:00:12.9]} 42. Kh2 {[%clk 0:00:04.3]} 42... Qe3 {[%clk 0:00:12.8]} 43.
b4 {[%clk 0:00:04.8]} 43... e5 {[%clk 0:00:12.8]} 44. Rd8+ {[%clk 0:00:05.1]}
44... Kh7 {[%clk 0:00:12.8]} 45. h4 {[%clk 0:00:05.8]} 45... Qf4+ {[%clk
0:00:12.4]} 46. Kh1 {[%clk 0:00:05.7]} 46... e4 {[%clk 0:00:12.7]} 47. Ng5+
{[%clk 0:00:05.9]} 47... Kg6 {[%clk 0:00:13.2]} 48. Nh3 {[%clk 0:00:02.8]} 48...
Qxh4 {[%clk 0:00:12.9]} 49. Rd1 {[%clk 0:00:03.2]} 49... e3 {[%clk 0:00:12.8]}
0-1

[Event "Late-Titled-Tuesday-Blitz-August-29-2023"]
[Site "Chess.com"]
[Date "2023.08.29"]
[Round "6"]
[White "Quattroporte300"]
[Black "vladgoncharov"]
[Result "1-0"]
[WhiteElo "2404"]
[BlackElo "2497"]
[TimeControl "180+1"]
[EndTime "15:05:56 PDT"]
[Termination "Quattroporte300 won on time"]

1. e4 {[%clk 0:03:00.9]} 1... e6 {[%clk 0:02:59.5]} 2. d4 {[%clk 0:02:59.4]}
2... d5 {[%clk 0:02:59.8]} 3. Nd2 {[%clk 0:02:59]} 3... Be7 {[%clk 0:02:58.7]}
4. Bd3 {[%clk 0:02:57.7]} 4... c5 {[%clk 0:02:56.2]} 5. exd5 {[%clk 0:02:57.1]}
5... Qxd5 {[%clk 0:02:54.9]} 6. Ngf3 {[%clk 0:02:55.5]} 6... cxd4 {[%clk
0:02:54.8]} 7. Nb3 {[%clk 0:02:49.7]} 7... Nc6 {[%clk 0:02:54.6]} 8. Nbxd4
{[%clk 0:02:48.3]} 8... Nxd4 {[%clk 0:02:53.5]} 9. Nxd4 {[%clk 0:02:47.8]} 9...
Qxg2 {[%clk 0:02:51]} 10. Bb5+ {[%clk 0:02:39]} 10... Kf8 {[%clk 0:02:48.3]} 11.
Rf1 {[%clk 0:02:30.6]} 11... e5 {[%clk 0:02:39.7]} 12. Ne2 {[%clk 0:02:18.5]}
12... Bg4 {[%clk 0:02:33.2]} 13. Qd3 {[%clk 0:02:08.5]} 13... Rd8 {[%clk
0:02:28.3]} 14. Qe3 {[%clk 0:02:02.3]} 14... Qd5 {[%clk 0:02:15.5]} 15. Bd3
{[%clk 0:01:55.1]} 15... Bb4+ {[%clk 0:02:04.6]} 16. Nc3 {[%clk 0:01:50.9]}
16... e4 {[%clk 0:01:43.2]} 17. Bd2 {[%clk 0:01:39]} 17... Bxc3 {[%clk
0:01:34.4]} 18. Bxc3 {[%clk 0:01:38.8]} 18... exd3 {[%clk 0:01:29.7]} 19. Bb4+
{[%clk 0:01:38.4]} 19... Ne7 {[%clk 0:01:27.9]} 20. Bxe7+ {[%clk 0:01:24.8]}
20... Kg8 {[%clk 0:01:26.6]} 21. Bxd8 {[%clk 0:01:23.3]} 21... h5 {[%clk
0:01:16.3]} 22. Bg5 {[%clk 0:01:17.5]} 22... dxc2 {[%clk 0:01:13.8]} 23. Qd2
{[%clk 0:01:10.6]} 23... Qe4+ {[%clk 0:01:00.2]} 24. Be3 {[%clk 0:01:11]} 24...
Kh7 {[%clk 0:00:58.9]} 25. f3 {[%clk 0:01:06.8]} 25... Bxf3 {[%clk 0:00:57.7]}
26. Kf2 {[%clk 0:00:59.8]} 26... Qf5 {[%clk 0:00:47.5]} 27. Bf4 {[%clk
0:00:45.1]} 27... Be4 {[%clk 0:00:45.5]} 28. Kg1 {[%clk 0:00:39.3]} 28... Re8
{[%clk 0:00:33.5]} 29. Bg3 {[%clk 0:00:35.5]} 29... Qc5+ {[%clk 0:00:30.7]} 30.
Qf2 {[%clk 0:00:34.1]} 30... Qc6 {[%clk 0:00:23.6]} 31. Qxf7 {[%clk 0:00:20.5]}
31... Re6 {[%clk 0:00:23.7]} 32. Qxh5+ {[%clk 0:00:13.4]} 32... Rh6 {[%clk
0:00:23.5]} 33. Qe2 {[%clk 0:00:13.4]} 33... Rg6 {[%clk 0:00:18.5]} 34. Rae1
{[%clk 0:00:12.7]} 34... Bd5 {[%clk 0:00:16.7]} 35. Qh5+ {[%clk 0:00:12.1]}
35... Kg8 {[%clk 0:00:16.9]} 36. Qf5 {[%clk 0:00:08.1]} 36... Qc5+ {[%clk
0:00:13.2]} 37. Qf2 {[%clk 0:00:07.8]} 37... Qb4 {[%clk 0:00:11]} 38. Qxc2
{[%clk 0:00:05.5]} 38... Qd4+ {[%clk 0:00:08.6]} 39. Qf2 {[%clk 0:00:05.5]}
39... Qb4 {[%clk 0:00:08.6]} 40. Re8+ {[%clk 0:00:05.3]} 40... Kh7 {[%clk
0:00:07.3]} 41. Qe3 {[%clk 0:00:04.4]} 41... Bc6 {[%clk 0:00:05]} 42. Qf2 {[%clk
0:00:02]} 1-0

[Event "Late-Titled-Tuesday-Blitz-August-29-2023"]
[Site "Chess.com"]
[Date "2023.08.29"]
[Round "6"]
[White "Cipy77"]
[Black "Dzidzik2203"]
[Result "1-0"]
[WhiteElo "2544"]
[BlackElo "2345"]
[TimeControl "180+1"]
[EndTime "15:05:56 PDT"]
[Termination "Cipy77 won by checkmate"]

1. a3 {[%clk 0:02:57.4]} 1... g6 {[%clk 0:02:59.1]} 2. c4 {[%clk 0:02:56.7]}
2... Bg7 {[%clk 0:02:59.6]} 3. e3 {[%clk 0:02:56.8]} 3... d6 {[%clk 0:02:58.9]}
4. Nc3 {[%clk 0:02:56.9]} 4... e5 {[%clk 0:02:59.6]} 5. d3 {[%clk 0:02:55.2]}
5... f5 {[%clk 0:02:59.1]} 6. Nf3 {[%clk 0:02:55.6]} 6... Nf6 {[%clk 0:02:59.6]}
7. Be2 {[%clk 0:02:55.9]} 7... O-O {[%clk 0:03:00.3]} 8. O-O {[%clk 0:02:56.2]}
8... h6 {[%clk 0:03:01]} 9. b4 {[%clk 0:02:56.1]} 9... g5 {[%clk 0:03:01.5]} 10.
Rb1 {[%clk 0:02:55.6]} 10... Nc6 {[%clk 0:03:00.8]} 11. Nd5 {[%clk 0:02:54.4]}
11... Ne7 {[%clk 0:03:00.9]} 12. Nxe7+ {[%clk 0:02:50.4]} 12... Qxe7 {[%clk
0:03:00.8]} 13. d4 {[%clk 0:02:49.3]} 13... e4 {[%clk 0:03:00.7]} 14. Nd2 {[%clk
0:02:49.4]} 14... c6 {[%clk 0:03:01.2]} 15. f4 {[%clk 0:02:48.2]} 15... exf3
{[%clk 0:02:54.8]} 16. Nxf3 {[%clk 0:02:47.8]} 16... Ng4 {[%clk 0:02:51.1]} 17.
Rb3 {[%clk 0:02:13.8]} 17... a5 {[%clk 0:02:49.5]} 18. h3 {[%clk 0:02:13.2]}
18... Nf6 {[%clk 0:02:47.9]} 19. Bd3 {[%clk 0:02:07.3]} 19... Ne4 {[%clk
0:02:43.8]} 20. b5 {[%clk 0:01:54.4]} 20... cxb5 {[%clk 0:02:34.3]} 21. Qc2
{[%clk 0:01:35.3]} 21... bxc4 {[%clk 0:02:23.3]} 22. Bxc4+ {[%clk 0:01:35.4]}
22... Kh8 {[%clk 0:02:19.7]} 23. Bd5 {[%clk 0:01:27.4]} 23... Nf6 {[%clk
0:01:55.4]} 24. Bc4 {[%clk 0:01:23.2]} 24... d5 {[%clk 0:01:26.3]} 25. Bd3
{[%clk 0:01:15.8]} 25... Ne4 {[%clk 0:01:26.6]} 26. Ne5 {[%clk 0:01:15.9]} 26...
Kh7 {[%clk 0:01:22.5]} 27. Bb2 {[%clk 0:01:11]} 27... Be6 {[%clk 0:01:14.7]} 28.
Rb6 {[%clk 0:01:04.8]} 28... Rfc8 {[%clk 0:01:07]} 29. Qd1 {[%clk 0:00:59.9]}
29... Rc7 {[%clk 0:01:03.7]} 30. Qh5 {[%clk 0:00:56.8]} 30... Bxe5 {[%clk
0:00:55.7]} 31. dxe5 {[%clk 0:00:57.7]} 31... Rc6 {[%clk 0:00:53.3]} 32. Rb5
{[%clk 0:00:39.7]} 32... Rc5 {[%clk 0:00:51.4]} 33. Rb6 {[%clk 0:00:36.9]} 33...
Rc6 {[%clk 0:00:51.3]} 34. Rb5 {[%clk 0:00:37.2]} 34... Rf8 {[%clk 0:00:45]} 35.
Bd4 {[%clk 0:00:36.1]} 35... Rf7 {[%clk 0:00:39.1]} 36. a4 {[%clk 0:00:34.1]}
36... Qa3 {[%clk 0:00:37.4]} 37. Bxe4 {[%clk 0:00:29.1]} 37... dxe4 {[%clk
0:00:38.3]} 38. Rfb1 {[%clk 0:00:24.3]} 38... Rc1+ {[%clk 0:00:37.8]} 39. Rxc1
{[%clk 0:00:22.4]} 39... Qxc1+ {[%clk 0:00:37.7]} 40. Kh2 {[%clk 0:00:23.1]}
40... f4 {[%clk 0:00:20.6]} 41. Rb6 {[%clk 0:00:23.3]} 41... Qc4 {[%clk
0:00:17.8]} 42. h4 {[%clk 0:00:17.6]} 42... g4 {[%clk 0:00:14.4]} 43. exf4
{[%clk 0:00:14.7]} 43... Re7 {[%clk 0:00:03.6]} 44. Be3 {[%clk 0:00:12.8]} 44...
Rf7 {[%clk 0:00:01.3]} 45. f5 {[%clk 0:00:11.1]} 45... Bxf5 {[%clk 0:00:01.5]}
46. Rxh6+ {[%clk 0:00:08.9]} 46... Kg8 {[%clk 0:00:02.4]} 47. Rh8+ {[%clk
0:00:09.1]} 47... Kg7 {[%clk 0:00:03]} 48. Qh6# {[%clk 0:00:09.8]} 1-0